bitfinex/quotes_SOLUSD_20250815
["timestamp","ask_amount","ask_price","bid_price","bid_amount"]
[1755231882164,157.45200026,195.68,195.6,0.03]
[1755231882165,12.77661655,195.67,195.6,0.03]
[1755231882362,17.88726202,195.67,195.66,0.03]
[1755231882968,18.55726202,195.67,195.66,0.03]
[1755231883463,26.78094321,195.67,195.66,0.03]
[1755231885790,5.78064547,195.67,195.66,0.03]
[1755231886077,0.67,195.67,195.66,0.03]
[1755231887560,145.23407649,195.68,195.66,0.03]
[1755231887867,0.67,195.67,195.66,0.03]
[1755231888664,137.01046784,195.68,195.66,0.03]
[1755231889045,145.23414903,195.68,195.66,0.03]
[1755231889277,0.67,195.67,195.66,0.03]
[1755231889974,137.01046784,195.68,195.66,0.03]
[1755231890271,137.68046784,195.68,195.66,0.03]
[1755231890972,131.9,195.68,195.66,0.03]
[1755231891369,137.01039051,195.68,195.66,0.03]
[1755231891673,137.68039051,195.68,195.66,0.03]
[1755231892450,8.89368119,195.67,195.66,0.03]
[1755231894273,14.00432666,195.67,195.66,0.03]
[1755231894470,17.42304904,195.67,195.66,0.03]
[1755231894656,17.56521061,195.67,195.66,0.03]
[1755231895374,83.98521061,195.67,195.66,0.03]
[1755231897876,53.98521061,195.67,195.66,0.03]
[1755231898457,17.42304904,195.67,195.66,0.03]
[1755231898666,14.00432666,195.67,195.66,0.03]
[1755231899861,17.42688023,195.67,195.66,0.03]
[1755231900181,3.42255357,195.67,195.66,0.03]
[1755231900357,5.78014385,195.69,195.66,0.03]
[1755231900673,0.67,195.72,195.67,8.22368119]
[1755231900850,3.42318171,195.71,195.67,8.22368119]
[1755231901050,3.42318171,195.71,195.66,0.24]
[1755231901051,0.66,195.7,195.66,0.03]
[1755231901455,0.66,195.69,195.66,0.03]
[1755231901885,13.33432666,195.67,195.66,0.03]
[1755231902269,13.99432666,195.67,195.66,0.03]
[1755231902567,17.4192296,195.67,195.66,0.03]
[1755231903655,12.30858413,195.67,195.66,0.03]
[1755231903963,17.4192296,195.67,195.66,0.03]
[1755231904765,3.42490294,195.67,195.66,0.03]
[1755231904978,131.9,195.71,195.66,0.03]
[1755231904979,3.42490294,195.7,195.66,0.03]
[1755231905178,131.9,195.71,195.66,8.46368119]
[1755231905179,3.42490294,195.69,195.66,8.46368119]
[1755231905474,3.42490294,195.7,195.66,0.24]
[1755231905681,3.42490294,195.69,195.66,0.03]
[1755231905978,3.43182421,195.7,195.66,0.03]
[1755231906169,131.9,195.71,195.69,8.22368119]
[1755231907168,131.9,195.71,195.68,8.22368119]
[1755231907567,131.9,195.71,195.69,8.22368119]
[1755231907763,5.82886825,195.74,195.69,8.22368119]
[1755231908076,3.43354913,195.73,195.69,8.22368119]
[1755231908290,0.06,195.74,195.72,8.22368119]
[1755231908583,0.06,195.74,195.73,59.91989676]
[1755231909062,0.06,195.74,195.73,65.02897559]
[1755231909386,0.06,195.74,195.73,65.53988347]
[1755231913100,0.06,195.76,195.73,65.53988347]
[1755231913101,0.06,195.76,195.73,67.58597147]
[1755231913259,0.06,195.76,195.74,0.21]
[1755231913578,0.06,195.8,195.76,15.10621557]
[1755231913777,0.06,195.8,195.77,60.65070025]
[1755231914776,0.06,195.8,195.79,28.43740991]
[1755231915291,0.06,195.8,195.79,28.64740991]
[1755231915586,0.06,195.8,195.79,28.43740991]
[1755231916485,0.06,195.8,195.79,28.64740991]
[1755231917694,0.06,195.8,195.79,49.91119434]
[1755231918187,0.06,195.8,195.79,50.12119434]
[1755231918684,0.06,195.8,195.79,65.22740991]
[1755231921195,0.06,195.8,195.79,67.27286991]
[1755231922110,0.1,195.81,195.79,67.27286991]
[1755231922300,0.1,195.81,195.8,8.43368119]
[1755231922680,1e-08,195.81,195.8,13.54093348]
[1755231923795,132.0,195.9,195.81,15.10621557]
[1755231923989,132.0,195.9,195.8,26.30906422]
[1755231923990,0.66,195.89,195.83,15.10621557]
[1755231924185,0.66,195.89,195.84,36.52]
[1755231924579,132.0,195.9,195.84,36.52]
[1755231924785,0.66,195.88,195.85,5.10594842]
[1755231924986,0.66,195.88,195.86,36.54]
[1755231925183,0.66,195.88,195.87,8.22368119]
[1755231926689,0.76,195.9,195.87,8.22368119]
[1755231926917,0.76,195.9,195.89,13.328587]
[1755231927097,0.1,195.9,195.89,49.828587]
[1755231928096,0.76,195.9,195.89,49.828587]
[1755231930210,0.1,195.94,195.9,15.10621557]
[1755231930423,0.1,195.94,195.93,8.22368119]
[1755231930600,0.1,195.94,195.93,59.82989676]
[1755231931714,0.1,195.94,195.93,23.32989676]
[1755231931916,0.1,195.94,195.93,59.84989676]
[1755231932391,0.1,195.94,195.93,64.95376038]
[1755231932796,0.1,195.94,195.93,65.16376038]
[1755231933923,0.1,195.94,195.93,28.64376038]
[1755231933924,1e-08,195.94,195.93,28.64376038]
[1755231934100,1e-08,195.94,195.93,65.12376038]
[1755231934301,1e-08,195.94,195.93,28.64376038]
[1755231934504,1e-08,195.94,195.93,65.12376038]
[1755231936613,1e-08,195.94,195.93,64.89376038]
[1755231937119,1e-08,195.94,195.93,65.10376038]
[1755231937802,1e-08,195.94,195.93,64.89376038]
[1755231937997,1e-08,195.94,195.93,66.93765238]
[1755231939355,1e-08,195.94,195.93,67.14765238]
[1755231939512,1e-08,195.94,195.93,66.93765238]
[1755231941016,1e-08,195.94,195.93,66.89765238]
[1755231944114,0.66000001,195.94,195.93,64.79376038]
[1755231944709,0.66000001,195.94,195.93,5.10386362]
[1755231944931,0.66000001,195.94,195.93,41.48386362]
[1755231945658,0.66000001,195.94,195.93,49.70754481]
[1755231945944,8.8836812,195.94,195.88,8.223681]
[1755231946228,0.66,195.93,195.89,41.50476214]
[1755231946841,0.66,195.93,195.89,49.72844333]
[1755231947225,0.66,195.93,195.89,13.32844333]
[1755231947537,0.66,195.93,195.9,36.38]
[1755231947742,0.66,195.93,195.9,41.48460959]
[1755231947919,0.66,195.93,195.91,36.38]
[1755231949029,0.66,195.93,195.88,0.03]
[1755231949334,8.88368119,195.93,195.88,5.13516453]
[1755231949520,8.88368119,195.92,195.89,36.38]
[1755231949718,8.88368119,195.91,195.9,36.4]
[1755231949920,0.66,195.91,195.9,36.4]
[1755231951727,0.66,195.91,195.9,49.72832641]
[1755231952937,0.66000001,195.94,195.9,49.72832641]
[1755231953141,0.66,195.93,195.89,8.22368119]
[1755231953371,0.66,195.93,195.9,36.4]
[1755231954341,0.66,195.93,195.91,36.42]
[1755231954851,0.66,195.93,195.92,36.42]
[1755231955040,4.06786907,195.93,195.92,36.42]
[1755231955636,4.06786907,195.93,195.88,13.35866672]
[1755231955836,8.22368119,195.89,195.88,0.03]
[1755231956233,12.2954657,195.89,195.88,36.43]
[1755231957052,0.66,195.89,195.88,36.43]
[1755231960968,0.66,195.89,195.88,36.39]
[1755231961150,1e-08,195.94,195.88,36.39]
[1755231961151,5.10361029,195.94,195.88,36.39]
[1755231961354,0.71,195.89,195.88,36.39]
[1755231962851,0.71,195.89,195.88,41.49511047]
[1755231963156,0.71,195.91,195.88,49.71879166]
[1755231963565,0.71,195.9,195.88,49.71879166]
[1755231963953,0.71,195.9,195.89,36.34]
[1755231965659,0.71,195.9,195.88,13.35879166]
[1755231965871,0.71,195.9,195.89,36.34]
[1755231967277,0.71,195.9,195.89,41.44490581]
[1755231967781,0.71,195.9,195.88,0.03]
[1755231967950,9.23926169,195.9,195.89,36.32]
[1755231968282,14.0383591,195.9,195.89,36.34]
[1755231968601,0.71,195.9,195.89,36.34]
[1755231971059,8.93368119,195.9,195.89,36.34]
[1755231973464,8.93368119,195.9,195.88,0.03]
[1755231973664,8.93368119,195.89,195.88,0.03]
[1755231973886,8.93368119,195.89,195.88,36.33]
[1755231974281,8.93368119,195.89,195.88,0.03]
[1755231974585,8.93368119,195.89,195.88,36.33]
[1755231974780,8.93368119,195.89,195.88,0.03]
[1755231975084,8.93368119,195.89,195.88,36.31]
[1755231977364,8.93368119,195.89,195.88,0.03]
[1755231977584,14.038587,195.89,195.88,0.03]
[1755231977768,14.038587,195.89,195.88,36.29]
[1755231978390,8.93368119,195.89,195.88,36.29]
[1755231979380,0.71,195.89,195.88,36.29]
[1755231979670,8.93368119,195.89,195.88,36.29]
[1755231981775,8.93368119,195.89,195.88,0.03]
[1755231982097,8.93368119,195.89,195.88,36.29]
[1755231987092,14.038587,195.89,195.88,36.29]
[1755231987896,17.46804476,195.89,195.88,0.03]
[1755231992379,12.36313895,195.89,195.88,0.03]
[1755231996899,4.13945776,195.89,195.88,0.03]
[1755231997201,12.36313895,195.89,195.88,0.03]
[1755231997890,8.88368119,195.93,195.88,0.24]
[1755231998079,3.43458406,195.92,195.89,36.24]
[1755231998293,3.43458406,195.91,195.89,36.24]
[1755231998470,3.43458406,195.9,195.89,36.24]
[1755231998875,1e-08,195.94,195.89,36.45]
[1755231998876,3.43458406,195.92,195.89,36.45]
[1755231999090,3.43458406,195.91,195.89,36.24]
[1755231999302,1e-08,195.94,195.9,0.21]
[1755231999605,1e-08,195.94,195.9,8.43368119]
[1755231999775,1e-08,195.94,195.91,5.31438466]
[1755232001401,1e-08,195.94,195.92,44.46368119]
[1755232001599,1e-08,195.94,195.93,8.22368119]
[1755232001904,1e-08,195.94,195.93,8.43368119]
[1755232003098,1e-08,195.94,195.93,13.53754481]
[1755232003509,1e-08,195.94,195.93,5.31386362]
[1755232003704,1e-08,195.94,195.93,13.53754481]
[1755232006995,1e-08,195.94,195.93,5.31386362]
[1755232007309,1e-08,195.94,195.93,13.53754481]
[1755232008409,1e-08,195.94,195.93,49.75754481]
[1755232009098,1e-08,195.94,195.93,13.53754481]
[1755232009294,1e-08,195.94,195.93,49.75754481]
[1755232009806,1e-08,195.94,195.93,13.32754481]
[1755232010007,0.66000001,195.94,195.93,36.22]
[1755232010692,0.66000001,195.94,195.91,13.32806585]
[1755232010888,1e-08,195.94,195.92,44.44368119]
[1755232011199,1e-08,195.94,195.93,5.10386362]
[1755232011809,1e-08,195.94,195.93,13.53754481]
[1755232012188,1e-08,195.94,195.93,13.32754481]
[1755232013918,1e-08,195.94,195.93,41.32386362]
[1755232014702,1e-08,195.94,195.93,49.54754481]
[1755232015804,1e-08,195.94,195.93,49.57754481]
[1755232016422,8.8836812,195.94,195.93,0.03]
[1755232016592,8.8836812,195.94,195.93,36.25]
[1755232017814,8.8836812,195.94,195.93,0.03]
[1755232018017,8.8836812,195.94,195.93,36.25]
[1755232018813,8.8836812,195.94,195.93,0.03]
[1755232019110,8.8836812,195.94,195.93,36.25]
[1755232021630,8.8836812,195.94,195.93,0.03]
[1755232021821,8.8836812,195.94,195.93,36.25]
[1755232024799,13.98728434,195.94,195.93,0.03]
[1755232024999,17.40987728,195.94,195.91,0.03]
[1755232025227,8.22368119,195.92,195.91,0.03]
[1755232025824,14.04780532,195.92,195.91,0.03]
[1755232026126,17.47039826,195.92,195.91,0.03]
[1755232028607,9.24671707,195.92,195.91,0.03]
[1755232028806,14.04780532,195.92,195.91,0.03]
[1755232029016,17.47039826,195.92,195.91,0.03]
[1755232031409,32.57661383,195.92,195.91,0.03]
[1755232032638,62.57661383,195.92,195.91,0.03]
[1755232033339,98.79661383,195.92,195.91,0.03]
[1755232034219,15.10621557,195.91,195.89,0.03]
[1755232034414,26.7524897,195.9,195.89,0.03]
[1755232034613,27.4724897,195.9,195.89,0.03]
[1755232034813,57.4724897,195.9,195.89,0.03]
[1755232035243,54.04989676,195.9,195.89,0.03]
[1755232035421,62.57790944,195.9,195.89,0.03]
[1755232035622,59.15454198,195.9,195.89,0.03]
[1755232036140,29.15454198,195.9,195.89,0.03]
[1755232036947,8.22368119,195.9,195.89,0.03]
[1755232037635,8.94368119,195.9,195.89,0.03]
[1755232038940,14.04832641,195.9,195.89,0.03]
[1755232039145,17.47169676,195.9,195.89,0.03]
[1755232042550,8.22368119,195.9,195.89,0.03]
[1755232044546,8.94368119,195.9,195.89,0.03]
[1755232045044,14.04832641,195.9,195.89,0.03]
[1755232054546,17.4729484,195.9,195.89,0.03]
[1755232063180,32.57916397,195.9,195.89,0.03]
[1755232063377,40.67442389,195.9,195.89,0.03]
[1755232063551,70.67442389,195.9,195.89,0.03]
[1755232064476,74.72977073,195.9,195.88,0.03]
[1755232064691,74.72977073,195.9,195.87,0.03]
[1755232064692,79.96049678,195.89,195.87,0.03]
[1755232064871,79.96049678,195.89,195.85,0.03]
[1755232064872,15.10621557,195.86,195.85,0.03]
[1755232065179,74.99731407,195.86,195.83,0.03]
[1755232065481,23.32989676,195.84,195.83,0.03]
[1755232065668,62.95451875,195.84,195.83,0.03]
[1755232066001,63.62451875,195.84,195.83,0.03]
[1755232066683,68.7307279,195.84,195.83,0.03]
[1755232067985,11.64830318,195.84,195.83,0.03]
[1755232068169,3.42462199,195.84,195.83,0.69]
[1755232068386,11.64830318,195.84,195.83,0.69]
[1755232068555,16.75451233,195.84,195.83,0.69]
[1755232068873,16.75451233,195.84,195.83,0.03]
[1755232069581,11.64830318,195.84,195.83,0.69]
[1755232070884,131.9,195.85,195.83,0.69]
[1755232072184,140.12368119,195.85,195.83,0.69]
[1755232072392,3.43795531,195.84,195.83,0.69]
[1755232072764,131.9,195.85,195.83,0.69]
[1755232073110,131.9,195.85,195.84,8.22368119]
[1755232073393,0.06,195.88,195.84,8.46368119]
[1755232073565,0.06,195.88,195.87,8.22368119]
[1755232073884,0.06,195.9,195.87,23.32989676]
[1755232074185,0.06,195.9,195.89,8.22368119]
[1755232074575,0.06,195.93,195.9,5.10464522]
[1755232074772,0.06,195.93,195.92,8.22368119]
[1755232075083,1e-08,195.94,195.93,15.10621557]
[1755232075384,3.43331335,196.04,195.95,41.10621557]
[1755232075568,0.48489879,196.05,196.03,8.22368119]
[1755232075769,0.48489879,196.05,196.04,8.22368119]
[1755232076294,0.48489879,196.05,196.03,8.22368119]
[1755232076472,0.48489879,196.05,195.96,8.22368119]
[1755232076677,8.22368119,196.01,195.93,26.0]
[1755232076872,0.48489879,196.05,195.96,8.22368119]
[1755232077274,8.22368119,196.01,195.95,8.22368119]
[1755232077485,8.22368119,196.01,195.94,8.22368119]
[1755232077788,5.5857373,196.05,195.91,44.42368119]
[1755232077789,8.22368119,195.97,195.91,44.42368119]
[1755232077994,8.22368119,195.98,195.91,44.42368119]
[1755232078172,8.22368119,195.98,195.91,8.22368119]
[1755232078787,8.22368119,195.98,195.91,13.32802333]
[1755232079111,8.22368119,195.95,195.89,8.22368119]
[1755232079892,8.22368119,195.95,195.89,13.32844601]
[1755232080285,5.77271063,195.98,195.9,8.22368119]
[1755232080286,8.22368119,195.96,195.9,8.22368119]
[1755232080599,8.22368119,196.0,195.94,8.22368119]
[1755232081878,8.22368119,196.0,195.94,13.3271527]
[1755232082274,8.22368119,196.0,195.94,5.10347151]
[1755232082672,8.53068119,196.02,195.97,5.10282186]
[1755232082894,0.307,196.02,195.97,13.32650305]
[1755232084899,0.307,196.02,195.97,8.22368119]
[1755232085072,8.53068119,196.02,195.96,8.22368119]
[1755232085896,8.22368119,196.01,195.93,15.10621557]
[1755232086084,8.22368119,196.0,195.94,8.22368119]
[1755232086795,8.91368119,196.01,195.95,8.22368119]
[1755232087092,0.307,196.02,195.92,5.10412413]
[1755232087093,8.22368119,195.98,195.92,5.10412413]
[1755232087301,8.22368119,195.97,195.92,5.10412413]
[1755232087595,8.22368119,195.98,195.92,13.32780532]
[1755232088283,0.69,196.0,195.92,13.32780532]
[1755232088511,8.91368119,196.0,195.94,8.22368119]
[1755232088886,8.53068119,196.02,195.96,8.22368119]
[1755232089191,8.22368119,196.01,195.95,8.22368119]
[1755232090376,8.22368119,196.01,195.95,13.32686593]
[1755232094475,9.22068119,196.02,195.96,8.22368119]
[1755232095076,9.22068119,196.02,195.97,5.10282186]
[1755232095579,0.307,196.02,195.97,13.32650305]
[1755232095805,0.69,196.01,195.97,5.10282186]
[1755232096201,0.69,196.01,195.97,13.32650305]
[1755232096704,8.53068119,196.02,195.97,13.32650305]
[1755232096878,0.997,196.02,195.97,49.48650305]
[1755232097887,0.997,196.02,195.97,41.26282186]
[1755232098141,0.997,196.02,195.97,49.48650305]
[1755232100583,0.307,196.02,195.97,49.48650305]
[1755232100906,0.69,196.01,195.97,49.48650305]
[1755232105787,0.69,196.01,195.97,41.26282186]
[1755232106414,8.22368119,195.99,195.93,30.46619357]
[1755232106614,0.69,195.98,195.94,36.16]
[1755232107905,0.69,195.98,195.94,41.26359503]
[1755232109001,0.69,195.97,195.94,41.26359503]
[1755232109512,0.69,195.97,195.94,5.10359503]
[1755232109717,0.69,195.97,195.95,36.16]
[1755232109718,0.69,195.96,195.95,36.16]
[1755232111195,8.92368119,195.98,195.95,36.16]
[1755232112013,5.10237514,195.99,195.95,36.16]
[1755232112014,8.22368119,195.99,195.95,36.16]
[1755232112324,0.7,195.99,195.95,36.16]
[1755232112506,8.92368119,195.99,195.95,36.16]
[1755232112898,0.7,195.98,195.95,36.16]
[1755232115217,0.7,195.97,195.95,36.16]
[1755232115389,11.64806479,195.99,195.95,36.16]
[1755232115595,0.7,195.97,195.95,36.16]
[1755232115797,0.7,195.96,195.95,36.16]
[1755232116810,8.92368119,195.98,195.95,36.19]
[1755232117016,8.28368119,195.98,195.95,36.19]
[1755232117205,8.28368119,195.98,195.95,0.03]
[1755232117206,4.1280071,195.97,195.95,0.03]
[1755232117413,3.4280071,195.96,195.95,0.03]
[1755232117612,4.1280071,195.96,195.95,36.19]
[1755232118727,3.4280071,195.96,195.95,36.19]
[1755232124218,0.7,195.97,195.95,36.19]
[1755232124619,3.43695613,195.96,195.95,36.19]
[1755232125224,0.7,195.97,195.95,36.19]
[1755232126331,0.7,195.96,195.95,36.19]
[1755232132018,8.98368119,195.98,195.95,36.19]
[1755232132220,0.7,195.97,195.95,36.19]
[1755232134336,0.76,195.97,195.95,36.19]
[1755232135227,0.06,195.97,195.95,36.19]
[1755232135431,0.76,195.97,195.95,36.19]
[1755232140650,0.06,195.97,195.95,36.19]
[1755232142133,0.75,195.97,195.95,36.19]
[1755232143041,8.91368119,195.96,195.95,36.19]
[1755232143555,0.69,195.96,195.95,36.19]
[1755232143857,0.75,195.97,195.95,36.19]
[1755232144939,0.75,195.97,195.95,41.29321609]
[1755232145135,0.06,195.97,195.96,8.22368119]
[1755232145339,0.06,195.97,195.95,41.29321609]
[1755232145533,0.06,195.97,195.96,8.22368119]
[1755232145952,0.75,195.97,195.95,36.19]
[1755232146459,0.06,195.97,195.96,36.14]
[1755232146662,11.72200863,195.97,195.96,36.14]
[1755232146959,12.41200863,195.97,195.96,36.14]
[1755232148537,12.41200863,195.97,195.95,0.03]
[1755232148738,12.35200863,195.96,195.95,0.03]
[1755232149041,17.45509089,195.96,195.95,0.03]
[1755232150059,21.27728025,195.96,195.95,0.03]
[1755232150365,17.45509089,195.96,195.95,0.03]
[1755232151163,21.27773299,195.96,195.95,0.03]
[1755232151354,17.45509089,195.96,195.95,0.03]
[1755232152762,3.43832744,195.96,195.95,0.03]
[1755232153752,0.06,195.97,195.95,0.03]
[1755232155161,0.06,195.97,195.95,8.25368119]
[1755232156862,0.06,195.97,195.96,5.10308226]
[1755232157067,3.49860426,195.97,195.96,5.10308226]
[1755232157266,0.06,195.97,195.96,5.10308226]
[1755232157566,3.49865145,195.97,195.96,5.10308226]
[1755232158761,3.49865145,195.97,195.95,5.13334268]
[1755232158963,0.06,195.97,195.96,8.22368119]
[1755232159565,0.06,195.97,195.95,5.13334268]
[1755232159566,0.75,195.97,195.95,5.13334268]
[1755232160369,0.06,195.97,195.95,5.13334268]
[1755232161475,0.06,195.97,195.95,13.35702387]
[1755232161972,0.06,195.97,195.96,8.22368119]
[1755232162972,0.06,195.97,195.96,13.32676345]
[1755232167262,1e-08,195.97,195.96,28.43297902]
[1755232167675,1e-08,195.97,195.96,30.47687202]
[1755232169478,1e-08,195.97,195.96,66.59687202]
[1755232176187,1e-08,195.97,195.96,30.47687202]
[1755232176368,1e-08,195.97,195.96,66.57687202]
[1755232176983,0.06,195.98,195.97,6.90282185]
[1755232177286,0.76,195.98,195.97,15.12650304]
[1755232177481,0.76,195.98,195.97,51.22650304]
[1755232177684,0.76,195.98,195.97,53.27039504]
[1755232178681,0.06,195.98,195.97,53.27039504]
[1755232178889,0.06,195.98,195.97,51.22650304]
[1755232179894,0.06,195.98,195.97,15.12650304]
[1755232180072,0.06,195.98,195.97,43.00282185]
[1755232180384,0.06,195.98,195.97,51.22650304]
[1755232180979,0.76,195.98,195.97,51.22650304]
[1755232181374,0.06,195.98,195.97,51.22650304]
[1755232181982,0.06,195.98,195.97,15.12650304]
[1755232182291,0.76,195.98,195.97,51.22650304]
[1755232182586,0.76,195.98,195.97,15.12650304]
[1755232182793,0.76,195.98,195.97,51.22650304]
[1755232182971,0.06,195.98,195.97,51.22650304]
[1755232184590,0.06,195.98,195.97,15.12650304]
[1755232184889,0.06,195.98,195.97,51.22650304]
[1755232185063,0.76,195.98,195.97,51.22650304]
[1755232185695,0.76,195.98,195.97,15.12650304]
[1755232186108,0.76,195.98,195.97,51.22650304]
[1755232186687,0.06,195.98,195.97,51.22650304]
[1755232187093,0.76,195.98,195.97,51.22650304]
[1755232188977,0.06,195.98,195.97,51.22650304]
[1755232189389,0.06,195.98,195.97,43.00282185]
[1755232189588,0.76,195.98,195.97,51.22650304]
[1755232190698,0.76,195.98,195.97,48.25129191]
[1755232191282,0.76,195.98,195.97,43.00282185]
[1755232191491,0.76,195.98,195.97,48.25129191]
[1755232197197,0.76,195.98,195.97,43.00282185]
[1755232197396,0.76,195.98,195.97,6.90282185]
[1755232197607,0.76,195.98,195.97,42.98282185]
[1755232197916,6.00847006,195.98,195.97,1.07999999]
[1755232198094,6.00847006,195.98,195.97,37.15999999]
[1755232200508,14.54699358,195.98,195.97,1.07999999]
[1755232200707,146.04621557,195.97,195.96,0.03]
[1755232200935,146.04621557,195.97,195.94,0.03]
[1755232200936,136.18847006,195.96,195.94,0.03]
[1755232201146,8.6844321,195.95,195.9,0.03]
[1755232201285,5.24847006,195.91,195.9,0.03]
[1755232201610,8.6844321,195.91,195.9,0.03]
[1755232201810,9.4044321,195.91,195.9,0.03]
[1755232202316,5.96847006,195.91,195.9,0.03]
[1755232202825,12.3703677,195.91,195.9,0.03]
[1755232203501,8.93440566,195.91,195.9,0.03]
[1755232204114,12.36317059,195.91,195.9,0.03]
[1755232204286,8.93440566,195.91,195.9,0.03]
[1755232205815,14.03879032,195.91,195.9,0.03]
[1755232206022,68.64974907,195.91,195.9,0.03]
[1755232207200,65.22500589,195.91,195.9,0.03]
[1755232207893,0.72,195.95,195.9,45.03440566]
[1755232208091,0.72,195.95,195.9,36.11]
[1755232208092,8.21440566,195.94,195.9,36.11]
[1755232208298,3.47917291,195.99,195.9,36.11]
[1755232208497,8.21440566,195.96,195.9,44.32440566]
[1755232208697,8.93440566,195.96,195.9,45.03440566]
[1755232209303,3.47917291,195.98,195.9,36.11]
[1755232209304,8.21440566,195.94,195.9,36.11]
[1755232209515,8.21440566,195.91,195.9,0.03]
[1755232209905,8.93440566,195.91,195.9,0.03]
[1755232213521,14.03879032,195.91,195.9,0.03]
[1755232213924,8.93440566,195.91,195.9,0.03]
[1755232214430,14.03879032,195.91,195.9,0.03]
[1755232218398,29.14500589,195.91,195.9,0.03]
[1755232220208,59.14500589,195.91,195.9,0.03]
[1755232220895,15.10621557,195.9,195.86,0.03]
[1755232221127,8.21440566,195.88,195.86,0.03]
[1755232221294,8.21440566,195.87,195.86,0.03]
[1755232221501,24.04062123,195.87,195.86,0.03]
[1755232222002,26.08681423,195.87,195.86,0.03]
[1755232222620,20.21216399,195.85,195.84,0.03]
[1755232222805,64.50656965,195.85,195.82,0.03]
[1755232223005,23.32062123,195.83,195.82,0.03]
[1755232223522,24.04062123,195.83,195.82,0.03]
[1755232223814,15.10621557,195.82,195.79,0.03]
[1755232224116,23.32062123,195.8,195.79,0.03]
[1755232224323,15.10621557,195.79,195.75,0.2]
[1755232224524,15.10621557,195.77,195.75,0.2]
[1755232224724,15.10621557,195.75,195.74,0.03]
[1755232225025,15.10621557,195.75,195.73,0.2]
[1755232225026,62.8097909,195.75,195.73,0.2]
[1755232225224,24.04062123,195.74,195.73,0.2]
[1755232225804,8.21440566,195.74,195.73,0.2]
[1755232226012,8.93440566,195.74,195.73,0.2]
[1755232226420,8.21440566,195.74,195.73,0.2]
[1755232227208,14.04322347,195.74,195.73,0.2]
[1755232227913,8.21440566,195.74,195.73,0.2]
[1755232229324,8.21440566,195.77,195.73,0.91]
[1755232229529,15.10621557,195.79,195.73,0.91]
[1755232229530,8.21440566,195.78,195.74,0.71]
[1755232229708,8.21440566,195.77,195.75,0.71]
[1755232229912,8.21440566,195.78,195.75,0.71]
[1755232230311,30.0,195.84,195.77,8.21440566]
[1755232230512,0.72,195.84,195.76,8.21440566]
[1755232230716,8.21440566,195.82,195.76,8.21440566]
[1755232230918,8.21440566,195.82,195.77,5.10803493]
[1755232231120,8.21440566,195.83,195.77,14.04244059]
[1755232231336,8.21440566,195.83,195.78,0.72]
[1755232231630,8.21440566,195.83,195.77,13.32244059]
[1755232231836,8.21440566,195.83,195.79,0.72]
[1755232232003,8.21440566,195.83,195.8,0.72]
[1755232232207,8.21440566,195.83,195.77,8.21440566]
[1755232232408,8.21440566,195.83,195.8,0.72]
[1755232232825,8.21440566,195.82,195.74,5.10881781]
[1755232233106,5.10623571,195.84,195.74,5.10881781]
[1755232233107,0.72,195.83,195.76,8.21440566]
[1755232233321,8.21440566,195.82,195.77,0.72]
[1755232233531,0.72,195.85,195.77,0.75]
[1755232233729,8.21440566,195.83,195.77,8.96440566]
[1755232233917,8.21440566,195.82,195.78,0.72]
[1755232234224,8.21440566,195.82,195.79,0.72]
[1755232234936,8.21440566,195.82,195.77,0.03]
[1755232234937,8.21440566,195.82,195.77,0.75]
[1755232235229,8.21440566,195.8,195.77,0.75]
[1755232235435,0.72,195.81,195.77,0.75]
[1755232235733,8.93440566,195.81,195.77,0.75]